fUST/lending_fUST_20250408
["ID","MTS","AMOUNT","RATE_DAILY","PERIOD"]
[357469165,1744077070256,-795.94,0.00026027,2]
[357469166,1744077070266,-500.0,0.00026027,2]
[357469167,1744077070276,-477.61740942,0.00026027,2]
[357469168,1744077070286,-5255.83,0.00026027,2]
[357469169,1744077070296,-1073.11,0.00026027,2]
[357469170,1744077070307,-1335.7,0.00026027,2]
[357469171,1744077070317,-1162.69,0.00026027,2]
[357469172,1744077070327,-561.08,0.00026027,2]
[357469173,1744077070337,-1291.27,0.00026027,2]
[357469174,1744077070347,-2979.5,0.00026027,2]
[357469175,1744077070357,-590.76,0.00026027,2]
[357469176,1744077070366,-1401.91,0.00026027,2]
[357469177,1744077070376,-500.0,0.00026027,2]
[357469178,1744077070386,-643.77348639,0.00026027,2]
[357469179,1744077070396,-500.0,0.00026027,2]
[357469180,1744077070406,-1531.45,0.00026027,2]
[357469181,1744077070415,-500.0,0.00026027,2]
[357469182,1744077070426,-1855.88,0.00026027,2]
[357469183,1744077070436,-1878.37,0.00026027,2]
[357469184,1744077070446,-500.0,0.00026027,2]
[357469185,1744077070456,-405.78504749,0.00026027,2]
[357469186,1744077070466,-500.0,0.00026027,2]
[357469187,1744077070477,-1906.57,0.00026027,2]
[357469188,1744077070487,-1498.13,0.00026027,2]
[357469189,1744077070496,-500.0,0.00026027,2]
[357469190,1744077070506,-1165.83,0.00026027,2]
[357469191,1744077070516,-500.0,0.00026027,2]
[357469192,1744077070526,-500.0,0.00026027,2]
[357469193,1744077070537,-1184.51,0.00026027,2]
[357469194,1744077070546,-2926.36,0.00026027,2]
[357469195,1744077070558,-1109.48,0.00026027,2]
[357469196,1744077070568,-8763.46,0.00026027,2]
[357469197,1744077070578,-602.81,0.00026027,2]
[357469198,1744077070588,-1118.42,0.00026027,2]
[357469199,1744077070598,-500.0,0.00026027,2]
[357469200,1744077070609,-500.0,0.00026027,2]
[357469201,1744077070619,-503.7,0.00026027,2]
[357469202,1744077070630,-500.0,0.00026027,2]
[357469203,1744077070639,-500.0,0.00026027,2]
[357469204,1744077070649,-1780.71,0.00026027,2]
[357469205,1744077070659,-1494.33,0.00026027,2]
[357469206,1744077070669,-2426.96,0.00026027,2]
[357469207,1744077070678,-853.03,0.00026027,2]
[357469208,1744077070688,-500.0,0.00026027,2]
[357469209,1744077070698,-500.0,0.00026027,2]
[357469210,1744077070708,-1136.31,0.00026027,2]
[357469211,1744077070718,-2088.72,0.00026027,2]
[357469212,1744077070728,-1347.03,0.00026027,2]
[357469213,1744077070738,-203.20736973,0.000263,2]
[357469214,1744077070748,-505.48,0.00026301,2]
[357469215,1744077070758,-549.37,0.00026301,2]
[357469216,1744077070768,-989.79,0.00026301,2]
[357469217,1744077070778,-571.51,0.00026301,2]
[357469218,1744077070787,-500.0,0.00026301,2]
[357469219,1744077070798,-354.07111573,0.00026301,2]
[357469220,1744077070808,-520.89,0.00026301,2]
[357469221,1744077070818,-500.0,0.00026301,2]
[357469222,1744077070828,-1231.93,0.00026301,2]
[357469223,1744077070837,-500.45734862,0.00026301,2]
[357469224,1744077070847,-612.52,0.00026301,2]
[357469225,1744077070856,-954.53,0.00026301,2]
[357469226,1744077070866,-500.0,0.00026301,2]
[357469227,1744077070876,-501.24,0.00026301,2]
[357469228,1744077070886,-943.13,0.00026301,2]
[357469229,1744077070896,-500.0,0.00026301,2]
[357469230,1744077070905,-643.13,0.00026301,2]
[357469231,1744077070915,-151.0,0.00026301,7]
[357469232,1744077070927,-500.0,0.00026301,2]
[357469233,1744077070940,-151.0,0.00026301,7]
[357469234,1744077070951,-1197.82,0.00026301,2]
[357469235,1744077070961,-711.83,0.00026301,2]
[357469236,1744077070971,-500.0,0.00026301,2]
[357469237,1744077070982,-1237.52,0.00026301,2]
[357469238,1744077070992,-816.65,0.00026301,2]
[357469239,1744077071002,-500.0,0.00026301,2]
[357469240,1744077071013,-521.4,0.00026301,2]
[357469241,1744077071023,-677.48,0.00026301,2]
[357469242,1744077071033,-500.0,0.00026301,2]
[357469243,1744077071043,-1015.63,0.00026301,2]
[357469244,1744077071054,-965.83,0.00026301,2]
[357469245,1744077071063,-883.8,0.00026301,2]
[357469246,1744077071074,-955.46,0.00026301,2]
[357469247,1744077071084,-500.0,0.00026301,2]
[357469248,1744077071094,-2195.18,0.00026301,2]
[357469249,1744077071105,-500.0,0.00026301,2]
[357469250,1744077071115,-500.0,0.00026301,2]
[357469251,1744077071124,-1724.47,0.00026301,2]
[357469252,1744077071134,-500.0,0.00026301,2]
[357469253,1744077071144,-181.3280427,0.00026301,2]
[357469254,1744077071154,-1673.88,0.00026301,2]
[357469255,1744077071164,-534.14,0.00026301,2]
[357469256,1744077071174,-500.0,0.00026301,2]
[357469257,1744077071184,-500.0,0.00026301,2]
[357469258,1744077071194,-1340.54,0.00026301,2]
[357469259,1744077071204,-542.01,0.00026301,2]
[357469260,1744077071214,-524.96,0.00026301,2]
[357469261,1744077071224,-730.76,0.00026301,2]
[357469262,1744077071233,-1513.16,0.00026301,2]
[357469263,1744077071243,-2076.71,0.00026301,2]
[357469264,1744077071253,-2241.86,0.00026301,2]
[357469265,1744077071263,-1276.21,0.00026301,2]
[357469266,1744077071274,-720.44,0.00026301,2]
[357469267,1744077071283,-2755.26,0.00026301,2]
[357469268,1744077071294,-500.0,0.00026301,2]
[357469269,1744077071304,-151.0,0.00026301,7]
[357469270,1744077071315,-326.45859928,0.00026301,2]
[357469271,1744077071325,-151.0,0.00026301,7]
[357469272,1744077071335,-795.94,0.00026301,2]
[357469273,1744077071345,-487.4252717,0.00026301,2]
[357469274,1744077071355,-5255.83,0.00026301,2]
[357469275,1744077071365,-1073.11,0.00026301,2]
[357469276,1744077071376,-1335.7,0.00026301,2]
[357469277,1744077071386,-1162.69,0.00026301,2]
[357469278,1744077071396,-561.08,0.00026301,2]
[357469279,1744077071406,-1291.27,0.00026301,2]
[357469280,1744077071417,-2979.5,0.00026301,2]
[357469281,1744077071427,-590.76,0.00026301,2]
[357469282,1744077071437,-1401.91,0.00026301,2]
[357469283,1744077071446,-521.80983,0.00026301,7]
[357469284,1744077071457,-521.80983,0.00026301,7]
[357469285,1744077071466,-500.0,0.00026301,2]
[357469286,1744077071477,-500.0,0.00026301,2]
[357469287,1744077071487,-1531.45,0.00026301,2]
[357469288,1744077071496,-500.0,0.00026301,2]
[357469289,1744077071506,-1855.88,0.00026301,2]
[357469290,1744077071515,-1878.37,0.00026301,2]
[357469291,1744077071525,-500.0,0.00026301,2]
[357469292,1744077071535,-235.22656,0.00026301,7]
[357469293,1744077071546,-1906.57,0.00026301,2]
[357469294,1744077071556,-500.0,0.00026301,2]
[357469295,1744077071566,-1498.13,0.00026301,2]
[357469296,1744077071576,-167.8303843,0.00026301,2]
[357469297,1744077071585,-1165.83,0.00026301,2]
[357469298,1744077071596,-500.0,0.00026301,2]
[357469299,1744077071606,-500.0,0.00026301,2]
[357469300,1744077071616,-200.035634,0.00026301,7]
[357469301,1744077071626,-1184.51,0.00026301,2]
[357469302,1744077071636,-200.035634,0.00026301,7]
[357469303,1744077071645,-2926.36,0.00026301,2]
[357469304,1744077071656,-1109.48,0.00026301,2]
[357469305,1744077071665,-8763.46,0.00026301,2]
[357469306,1744077071675,-201.220329,0.00026301,7]
[357469307,1744077071685,-602.81,0.00026301,2]
[357469308,1744077071695,-1118.42,0.00026301,2]
[357469309,1744077071704,-500.0,0.00026301,2]
[357469310,1744077071714,-500.0,0.00026301,2]
[357469311,1744077071725,-151.0,0.00026301,7]
[357469312,1744077071736,-503.7,0.00026301,2]
[357469313,1744077071746,-500.0,0.00026301,2]
[357469314,1744077071755,-500.0,0.00026301,2]
[357469315,1744077071765,-253.205421,0.00026301,7]
[357469316,1744077071776,-253.205421,0.00026301,7]
[357469317,1744077071786,-1780.71,0.00026301,2]
[357469318,1744077071795,-151.0,0.00026301,2]
[357469319,1744077071805,-1494.33,0.00026301,2]
[357469320,1744077071815,-2426.96,0.00026301,2]
[357469321,1744077071825,-853.03,0.00026301,2]
[357469322,1744077071835,-165.514806,0.00026301,7]
[357469323,1744077071845,-151.0,0.00026301,7]
[357469324,1744077071856,-243.72639097,0.00026301,2]
[357469325,1744077071867,-151.0,0.00026301,7]
[357469326,1744077071877,-500.0,0.00026301,2]
[357469327,1744077071886,-1136.31,0.00026301,2]
[357469328,1744077071896,-2088.72,0.00026301,2]
[357469329,1744077071906,-1347.03,0.00026301,2]
[357469330,1744077071915,-505.48,0.00026575,2]
[357469331,1744077071926,-549.37,0.00026575,2]
[357469332,1744077071939,-989.79,0.00026575,2]
[357469333,1744077071948,-571.51,0.00026575,2]
[357469334,1744077071958,-500.0,0.00026575,2]
[357469335,1744077071967,-520.89,0.00026575,2]
[357469336,1744077071978,-500.0,0.00026575,2]
[357469337,1744077071988,-1231.93,0.00026575,2]
[357469338,1744077071998,-612.52,0.00026575,2]
[357469339,1744077072009,-954.53,0.00026575,2]
[357469340,1744077072020,-500.0,0.00026575,2]
[357469341,1744077072030,-501.24,0.00026575,2]
[357469342,1744077072040,-943.13,0.00026575,2]
[357469343,1744077072049,-500.0,0.00026575,2]
[357469344,1744077072060,-643.13,0.00026575,2]
[357469345,1744077072070,-500.0,0.00026575,2]
[357469346,1744077072079,-1197.82,0.00026575,2]
[357469347,1744077072088,-711.83,0.00026575,2]
[357469348,1744077072098,-635.13222418,0.00026575,2]
[357469349,1744077072108,-1237.52,0.00026575,2]
[357469350,1744077072118,-816.65,0.00026575,2]
[357469351,1744077072128,-151.0,0.00026575,7]
[357469352,1744077072137,-500.0,0.00026575,2]
[357469353,1744077072146,-521.4,0.00026575,2]
[357469354,1744077072156,-677.48,0.00026575,2]
[357469355,1744077072165,-500.0,0.00026575,2]
[357469356,1744077072175,-1015.63,0.00026575,2]
[357469357,1744077072185,-965.83,0.00026575,2]
[357469358,1744077072195,-883.8,0.00026575,2]
[357469359,1744077072204,-955.46,0.00026575,2]
[357469360,1744077072214,-500.0,0.00026575,2]
[357469361,1744077072224,-2195.18,0.00026575,2]
[357469362,1744077072233,-500.0,0.00026575,2]
[357469363,1744077072242,-500.0,0.00026575,2]
[357469364,1744077072252,-1724.47,0.00026575,2]
[357469365,1744077072261,-500.0,0.00026575,2]
[357469366,1744077072271,-1673.88,0.00026575,2]
[357469367,1744077072280,-534.14,0.00026575,2]
[357469368,1744077072290,-500.0,0.00026575,2]
[357469369,1744077072300,-500.0,0.00026575,2]
[357469370,1744077072312,-1340.54,0.00026575,2]
[357469371,1744077072322,-542.01,0.00026575,2]
[357469372,1744077072332,-524.96,0.00026575,2]
[357469373,1744077072342,-730.76,0.00026575,2]
[357469374,1744077072352,-1513.16,0.00026575,2]
[357469375,1744077072362,-2076.71,0.00026575,2]
[357469376,1744077072372,-151.0,0.00026575,7]
[357469377,1744077072381,-2241.86,0.00026575,2]
[357469378,1744077072391,-1276.21,0.00026575,2]
[357469379,1744077072400,-720.44,0.00026575,2]
[357469380,1744077072412,-2755.26,0.00026575,2]
[357469381,1744077072421,-518.96611911,0.00026575,2]
[357469382,1744077072431,-795.94,0.00026575,2]
[357469383,1744077072440,-5255.83,0.00026575,2]
[357469384,1744077072450,-1073.11,0.00026575,2]
[357469385,1744077072460,-1335.7,0.00026575,2]
[357469386,1744077072469,-1162.69,0.00026575,2]
[357469387,1744077072479,-561.08,0.00026575,2]
[357469388,1744077072488,-1291.27,0.00026575,2]
[357469389,1744077072498,-2979.5,0.00026575,2]
[357469390,1744077072509,-590.76,0.00026575,2]
[357469391,1744077072518,-1401.91,0.00026575,2]
[357469392,1744077072528,-500.0,0.00026575,2]
[357469393,1744077072537,-500.0,0.00026575,2]
[357469394,1744077072547,-1531.45,0.00026575,2]
[357469395,1744077072558,-500.0,0.00026575,2]
[357469396,1744077072568,-1855.88,0.00026575,2]
[357469397,1744077072578,-1878.37,0.00026575,2]
[357469398,1744077072587,-500.0,0.00026575,2]
[357469399,1744077072597,-1906.57,0.00026575,2]
[357469400,1744077072607,-500.0,0.00026575,2]
[357469401,1744077072617,-1498.13,0.00026575,2]
[357469402,1744077072626,-1165.83,0.00026575,2]
[357469403,1744077072636,-500.0,0.00026575,2]
[357469404,1744077072645,-500.0,0.00026575,2]
[357469405,1744077072655,-1184.51,0.00026575,2]
[357469406,1744077072664,-2926.36,0.00026575,2]
[357469407,1744077072674,-1109.48,0.00026575,2]
[357469408,1744077072684,-8763.46,0.00026575,2]
[357469409,1744077072693,-602.81,0.00026575,2]
[357469410,1744077072702,-1118.42,0.00026575,2]
[357469411,1744077072713,-155.85527683,0.00026575,2]
[357469412,1744077072723,-500.0,0.00026575,2]
[357469413,1744077072732,-503.7,0.00026575,2]
[357469414,1744077072742,-500.0,0.00026575,2]
[357469415,1744077072751,-500.0,0.00026575,2]
[357469416,1744077072761,-1780.71,0.00026575,2]
[357469417,1744077072770,-1494.33,0.00026575,2]
[357469418,1744077072780,-2426.96,0.00026575,2]
[357469419,1744077072790,-853.03,0.00026575,2]
[357469420,1744077072799,-500.0,0.00026575,2]
[357469421,1744077072810,-1136.31,0.00026575,2]
[357469422,1744077072820,-2088.72,0.00026575,2]
[357469423,1744077072830,-1347.03,0.00026575,2]
[357469424,1744077072839,-505.48,0.00026849,2]
[357469425,1744077072848,-549.37,0.00026849,2]
[357469426,1744077072858,-989.79,0.00026849,2]
[357469427,1744077072868,-571.51,0.00026849,2]
[357469428,1744077072877,-500.0,0.00026849,2]
[357469429,1744077072887,-520.89,0.00026849,2]
[357469430,1744077072896,-518.64908891,0.00026849,2]
[357469431,1744077072905,-1231.93,0.00026849,2]
[357469432,1744077072915,-612.52,0.00026849,2]
[357469433,1744077072924,-954.53,0.00026849,2]
[357469434,1744077072939,-449.77960098,0.00026849,2]
[357469435,1744077072949,-501.24,0.00026849,2]
[357469436,1744077072958,-943.13,0.00026849,2]
[357469437,1744077072968,-500.0,0.00026849,2]
[357469438,1744077072979,-643.13,0.00026849,2]
[357469439,1744077072988,-152.706169,0.00026849,7]
[357469440,1744077072998,-500.0,0.00026849,2]
[357469441,1744077073007,-1197.82,0.00026849,2]
[357469442,1744077073017,-711.83,0.00026849,2]
[357469443,1744077073027,-1237.52,0.00026849,2]
[357469444,1744077073036,-816.65,0.00026849,2]
[357469445,1744077073045,-500.0,0.00026849,2]
[357469446,1744077073056,-521.4,0.00026849,2]
[357469447,1744077073065,-677.48,0.00026849,2]
[357469448,1744077073075,-500.0,0.00026849,2]
[357469449,1744077073084,-1015.63,0.00026849,2]
[357469450,1744077073094,-965.83,0.00026849,2]
[357469451,1744077073104,-883.8,0.00026849,2]
[357469452,1744077073114,-955.46,0.00026849,2]
[357469453,1744077073278,-500.0,0.00026849,2]
[357469454,1744077073288,-2195.18,0.00026849,2]
[357469455,1744077073298,-192.25058245,0.00026849,2]
[357469456,1744077073309,-500.0,0.00026849,2]
[357469457,1744077073319,-1724.47,0.00026849,2]
[357469458,1744077073329,-154.01714416,0.00026849,2]
[357469459,1744077073339,-1673.88,0.00026849,2]
[357469460,1744077073350,-534.14,0.00026849,2]
[357469461,1744077073360,-151.18921836,0.00026849,2]
[357469462,1744077073370,-500.0,0.00026849,2]
[357469463,1744077073379,-1340.54,0.00026849,2]
[357469464,1744077073389,-542.01,0.00026849,2]
[357469465,1744077073399,-524.96,0.00026849,2]
[357469466,1744077073409,-730.76,0.00026849,2]
[357469467,1744077073419,-1513.16,0.00026849,2]
[357469468,1744077073428,-2076.71,0.00026849,2]
[357469469,1744077073439,-2241.86,0.00026849,2]
[357469470,1744077073448,-1276.21,0.00026849,2]
[357469471,1744077073459,-720.44,0.00026849,2]
[357469472,1744077073468,-2755.26,0.00026849,2]
[357469473,1744077073478,-795.94,0.00026849,2]
[357469474,1744077073489,-5255.83,0.00026849,2]
[357469475,1744077073499,-1073.11,0.00026849,2]
[357469476,1744077073509,-1335.7,0.00026849,2]
[357469477,1744077073518,-1162.69,0.00026849,2]
[357469478,1744077073528,-561.08,0.00026849,2]
[357469479,1744077073538,-1291.27,0.00026849,2]
[357469480,1744077073547,-2979.5,0.00026849,2]
[357469481,1744077073557,-590.76,0.00026849,2]
[357469482,1744077073567,-1401.91,0.00026849,2]
[357469483,1744077073577,-500.0,0.00026849,2]
[357469484,1744077073587,-500.0,0.00026849,2]
[357469485,1744077073596,-1531.45,0.00026849,2]
[357469486,1744077073606,-500.0,0.00026849,2]
[357469487,1744077073615,-1855.88,0.00026849,2]
[357469488,1744077073625,-1878.37,0.00026849,2]
[357469489,1744077073635,-500.0,0.00026849,2]
[357469490,1744077073644,-500.0,0.00026849,2]
[357469491,1744077073653,-1906.57,0.00026849,2]
[357469492,1744077073663,-1498.13,0.00026849,2]
[357469493,1744077073672,-1165.83,0.00026849,2]
[357469494,1744077073682,-500.0,0.00026849,2]
[357469495,1744077073692,-500.0,0.00026849,2]
[357469496,1744077073702,-1184.51,0.00026849,2]
[357469497,1744077073712,-2926.36,0.00026849,2]
[357469498,1744077073723,-1109.48,0.00026849,2]
[357469499,1744077073733,-8763.46,0.00026849,2]
[357469500,1744077073742,-602.81,0.00026849,2]
[357469501,1744077073752,-1118.42,0.00026849,2]
[357469502,1744077073763,-500.0,0.00026849,2]
[357469503,1744077073773,-503.7,0.00026849,2]
[357469504,1744077073783,-500.0,0.00026849,2]
[357469505,1744077073792,-500.0,0.00026849,2]
[357469506,1744077073802,-1780.71,0.00026849,2]
[357469507,1744077073813,-1494.33,0.00026849,2]
[357469508,1744077073823,-2426.96,0.00026849,2]
[357469509,1744077073833,-853.03,0.00026849,2]
[357469510,1744077073843,-500.0,0.00026849,2]
[357469511,1744077073853,-1136.31,0.00026849,2]
[357469512,1744077073863,-2088.72,0.00026849,2]
[357469513,1744077073873,-1347.03,0.00026849,2]
[357469514,1744077073883,-174.643038,0.0002699,7]
[357469515,1744077073893,-151.0,0.0002699,7]
[357469516,1744077073903,-151.0,0.0002699,7]
[357469517,1744077073913,-290.919118,0.0002699,7]
[357469518,1744077073923,-290.919118,0.0002699,7]
[357469519,1744077073934,-151.699805,0.0002699,7]
[357469520,1744077073948,-12527.9349248,0.00027123,3]
[357469521,1744077073959,-160.0,0.00027123,3]
[357469522,1744077073969,-25453.22871153,0.00027123,3]
[357469523,1744077073979,-41848.95936438,0.00027123,2]
[357469524,1744077073990,-505.48,0.00027123,2]
[357469525,1744077073999,-549.37,0.00027123,2]
[357469526,1744077074009,-989.79,0.00027123,2]
[357469527,1744077074021,-571.51,0.00027123,2]
[357469528,1744077074030,-500.0,0.00027123,2]
[357469529,1744077074040,-520.89,0.00027123,2]
[357469530,1744077074050,-1231.93,0.00027123,2]
[357469531,1744077074060,-612.52,0.00027123,2]
[357469532,1744077074070,-954.53,0.00027123,2]
[357469533,1744077074080,-501.24,0.00027123,2]
[357469534,1744077074090,-943.13,0.00027123,2]
[357469535,1744077074100,-500.0,0.00027123,2]
[357469536,1744077074110,-643.13,0.00027123,2]
[357469537,1744077074120,-500.0,0.00027123,2]
[357469538,1744077074130,-1197.82,0.00027123,2]
[357469539,1744077074140,-711.83,0.00027123,2]
[357469540,1744077074149,-1237.52,0.00027123,2]
[357469541,1744077074159,-816.65,0.00027123,2]
[357469542,1744077074170,-500.0,0.00027123,2]
[357469543,1744077074180,-521.4,0.00027123,2]
[357469544,1744077074189,-677.48,0.00027123,2]
[357469545,1744077074200,-500.0,0.00027123,2]
[357469546,1744077074210,-1015.63,0.00027123,2]
[357469547,1744077074220,-965.83,0.00027123,2]
[357469548,1744077074230,-883.8,0.00027123,2]
[357469549,1744077074239,-955.46,0.00027123,2]
[357469550,1744077074249,-500.0,0.00027123,2]
[357469551,1744077074259,-2195.18,0.00027123,2]
[357469552,1744077074269,-500.0,0.00027123,2]
[357469553,1744077074280,-1724.47,0.00027123,2]
[357469554,1744077074290,-1673.88,0.00027123,2]
[357469555,1744077074301,-534.14,0.00027123,2]
[357469556,1744077074314,-500.0,0.00027123,2]
[357469557,1744077074324,-1340.54,0.00027123,2]
[357469558,1744077074336,-542.01,0.00027123,2]
[357469559,1744077074346,-524.96,0.00027123,2]
[357469560,1744077074358,-730.76,0.00027123,2]
[357469561,1744077074370,-1513.16,0.00027123,2]
[357469562,1744077074381,-2076.71,0.00027123,2]
[357469563,1744077074393,-2241.86,0.00027123,2]
[357469564,1744077074404,-1276.21,0.00027123,2]
[357469565,1744077074415,-720.44,0.00027123,2]
[357469566,1744077074426,-2755.26,0.00027123,2]
[357469567,1744077074437,-795.94,0.00027123,2]
[357469568,1744077074448,-5255.83,0.00027123,2]
[357469569,1744077074458,-1073.11,0.00027123,2]
[357469570,1744077074469,-1335.7,0.00027123,2]
[357469571,1744077074481,-1162.69,0.00027123,2]
[357469572,1744077074492,-561.08,0.00027123,2]
[357469573,1744077074503,-1291.27,0.00027123,2]
[357469574,1744077074515,-2979.5,0.00027123,2]
[357469575,1744077074527,-590.76,0.00027123,2]
[357469576,1744077074539,-1401.91,0.00027123,2]
[357469577,1744077074551,-500.0,0.00027123,2]
[357469578,1744077074568,-500.0,0.00027123,2]
[357469579,1744077074579,-1531.45,0.00027123,2]
[357469580,1744077074590,-500.0,0.00027123,2]
[357469581,1744077074600,-1855.88,0.00027123,2]
[357469582,1744077074610,-1878.37,0.00027123,2]
[357469583,1744077074621,-339.73060867,0.00027123,2]
[357469584,1744077074631,-282.24501042,0.00027123,2]
[357469585,1744077074641,-1906.57,0.00027123,2]
[357469586,1744077074650,-1498.13,0.00027123,2]
[357469587,1744077074660,-1165.83,0.00027123,2]
[357469588,1744077074670,-500.0,0.00027123,2]
[357469589,1744077074680,-500.0,0.00027123,2]
[357469590,1744077074690,-1184.51,0.00027123,2]
[357469591,1744077074700,-2926.36,0.00027123,2]
[357469592,1744077074710,-1109.48,0.00027123,2]
[357469593,1744077074720,-8763.46,0.00027123,2]
[357469594,1744077074730,-602.81,0.00027123,2]
[357469595,1744077074740,-1118.42,0.00027123,2]
[357469596,1744077074750,-500.0,0.00027123,2]
[357469597,1744077074760,-503.7,0.00027123,2]
[357469598,1744077074770,-500.0,0.00027123,2]
[357469599,1744077074780,-560.86351321,0.00027123,2]
[357469600,1744077074790,-1780.71,0.00027123,2]
[357469601,1744077074800,-1494.33,0.00027123,2]
[357469602,1744077074812,-2426.96,0.00027123,2]
[357469603,1744077074822,-853.03,0.00027123,2]
[357469604,1744077074831,-500.0,0.00027123,2]
[357469605,1744077074841,-1136.31,0.00027123,2]
[357469606,1744077074851,-2088.72,0.00027123,2]
[357469607,1744077074862,-1347.03,0.00027123,2]
[357469608,1744077074871,-231.28369723,0.0002728,2]
[357469609,1744077074881,-783.73948285,0.00027397,3]
[357469610,1744077074890,-419.36665037,0.00027397,3]
[357469611,1744077074900,-160.0,0.00027397,3]
[357469612,1744077074909,-160.0,0.00027397,3]
[357469613,1744077074919,-344.52903144,0.00027397,2]
[357469614,1744077074931,-505.48,0.00027397,2]
[357469615,1744077074942,-549.37,0.00027397,2]
[357469616,1744077074955,-989.79,0.00027397,2]
[357469617,1744077074964,-571.51,0.00027397,2]
[357469618,1744077074974,-151.183217,0.00027397,7]
[357469619,1744077074985,-500.0,0.00027397,2]
[357469620,1744077074995,-520.89,0.00027397,2]
[357469621,1744077075004,-1231.93,0.00027397,2]
[357469622,1744077075014,-612.52,0.00027397,2]
[357469623,1744077075023,-954.53,0.00027397,2]
[357469624,1744077075033,-501.24,0.00027397,2]
[357469625,1744077075042,-943.13,0.00027397,2]
[357469626,1744077075052,-626.18151357,0.00027397,2]
[357469627,1744077075062,-643.13,0.00027397,2]
[357469628,1744077075071,-459.63662608,0.00027397,2]
[357469629,1744077075081,-1197.82,0.00027397,2]
[357469630,1744077075090,-711.83,0.00027397,2]
[357469631,1744077075099,-1237.52,0.00027397,2]
[357469632,1744077075109,-816.65,0.00027397,2]
[357469633,1744077075118,-501.49010657,0.00027397,2]
[357469634,1744077075128,-537.45945234,0.00027397,2]
[357469635,1744077075138,-521.4,0.00027397,2]
[357469636,1744077075147,-677.48,0.00027397,2]
[357469637,1744077075157,-500.0,0.00027397,2]
[357469638,1744077075167,-1015.63,0.00027397,2]
[357469639,1744077075177,-965.83,0.00027397,2]
[357469640,1744077075188,-883.8,0.00027397,2]
[357469641,1744077075198,-955.46,0.00027397,2]
[357469642,1744077075208,-448.35193866,0.00027397,2]
[357469643,1744077075219,-2195.18,0.00027397,2]
[357469644,1744077075229,-500.0,0.00027397,2]
[357469645,1744077075241,-1724.47,0.00027397,2]
[357469646,1744077075252,-1673.88,0.00027397,2]
[357469647,1744077075262,-534.14,0.00027397,2]
[357469648,1744077075273,-500.0,0.00027397,2]
[357469649,1744077075284,-1340.54,0.00027397,2]
[357469650,1744077075295,-542.01,0.00027397,2]
[357469651,1744077075305,-524.96,0.00027397,2]
[357469652,1744077075320,-730.76,0.00027397,2]
[357469653,1744077075331,-1513.16,0.00027397,2]
[357469654,1744077075341,-2076.71,0.00027397,2]
[357469655,1744077075350,-2241.86,0.00027397,2]
[357469656,1744077075360,-1276.21,0.00027397,2]
[357469657,1744077075369,-720.44,0.00027397,2]
[357469658,1744077075379,-2755.26,0.00027397,2]
[357469659,1744077075389,-795.94,0.00027397,2]
[357469660,1744077075399,-5255.83,0.00027397,2]
[357469661,1744077075410,-1073.11,0.00027397,2]
[357469662,1744077075420,-1335.7,0.00027397,2]
[357469663,1744077075431,-1162.69,0.00027397,2]
[357469664,1744077075441,-561.08,0.00027397,2]